Cogmind - Beta 12 @@@ ROGUE MODE // 2023.05.01 @ 08:49:18 Player: kawyua Result: Destroyed by D-53 Grenadier with Mini Grenade Launcher Performance ------------- Evolutions (0) 0 Regions Visited (2) 400 Robots Destroyed (24) 120 Value Destroyed (506) 506 Prototype IDs (0) 0 Alien Tech Used (0) 0 Bonus (0) 0 TOTAL SCORE: 1026 Bonus ------- None Cogmind --------- Core Integrity 0/250 Matter 290/300 Energy 100/100 System Corruption 0% Temperature Cool (0) Movement Flying (45) Location -10/Mines Parts ------- > --- POWER (1) -------- (None) > --- PROPULSION (2) --- Compact Wheel Flight Unit > --- UTILITY (2) ------ Targeting Computer > --- WEAPON (2) ------- Small Laser Light Assault Rifle > --- INVENTORY (5) ---- Ion Engine Improved Terrain Scanner Seismic Detector Seismic Detector Medium Laser Peak State ------------ > --- POWER ------------ Ion Engine > --- PROPULSION ------- Compact Wheel Compact Wheel > --- UTILITY ---------- High-capacity Storage Unit Targeting Computer > --- WEAPON ----------- Small Laser Light Assault Rifle > --- INVENTORY -------- Ion Engine Light Ion Engine Flight Unit Flight Unit Large Storage Unit Large Matter Pod High-capacity Matter Pod Compact Matter Pod Compact Matter Pod Improved Terrain Scanner Seismic Detector Seismic Detector Hacking Suite Medium Laser Particle Gun Particle Gun Light Assault Rifle Light Assault Rifle Light Assault Rifle Mining Laser [Rating: 10] Favorites ----------- Power Ion Engine Engine Ion Engine Propulsion Light Treads Treads Light Treads Wheel Compact Wheel Flight Unit Flight Unit Utility Small Storage Unit Device Seismic Detector Storage Small Storage Unit Processor Targeting Computer Weapon Light Assault Rifle Energy Gun Small Laser Ballistic Gun Light Assault Rifle Special Weapon Mining Laser Build | -11 -10 -10 ------- Run | Jun Mat Min Slots Evolved . | . . . Power . | . . . Propulsion . | . . . Utility . | . . . Weapon . | . . . Parts Attached 29 | 10 15 4 Power 2 | 1 . 1 Engine 2 | 1 . 1 Core . | . . . Reactor . | . . . Propulsion 12 | 5 5 2 Treads 4 | 2 2 . Leg . | . . . Wheel 7 | 3 3 1 Hover . | . . . Flight 1 | . . 1 Utility 5 | 2 3 . Device 1 | 1 . . Storage 2 | 1 1 . Processor 2 | . 2 . Hackware . | . . . Protection . | . . . Artifact . | . . . Weapon 10 | 2 7 1 Energy Gun 2 | 1 1 . Energy Cannon . | . . . Ballistic Gun 5 | 1 3 1 Ballistic Cannon . | . . . Launcher . | . . . Special Weapon 3 | . 3 . Impact Weapon . | . . . Slashing Weapon . | . . . Piercing Weapon . | . . . Special Melee Weapon . | . . . Unidentified Prototypes . | . . . Parts Lost 5 | . 2 3 Power 1 | . . 1 Propulsion 3 | . 2 1 Utility . | . . . Weapon 1 | . . 1 Highest Loss Streak 2 | . 2 2 To Critical Strikes . | . . . Average Slot Usage (%) 98 | . 99 95 Engine 14 | . 14 14 Treads 18 | . 23 . Wheel 8 | . 4 24 Device 1 | . 2 . Storage 14 | . 14 14 Processor 12 | . 11 14 Energy Gun 6 | . 4 14 Ballistic Gun 18 | . 19 13 Special Weapon 3 | . 4 . Naked Turns . | . . . Heaviest Build 48 | 13 48 48 Greatest Support 40 | 40 40 32 Greatest Overweight (x) 2 | 1 2 2 Average Overweight (x) . | . . 1 Largest Inventory Capacity 20 | 8 20 20 Average Capacity 13 | 7 15 19 Most Carried 20 | 8 12 20 Average Carried 9 | 6 9 16 Final Capacity 20 | 8 20 5 Final Carried 11 | 8 11 5 Class Distribution -------------------- 100% | Mutant Dominant Class ---------------- Mutant | -10/Materials Mutant | -10/Mines Resources | -11 -10 -10 ----------- Run | Jun Mat Min Matter Collected 666 | 324 297 45 Remotely . | . . . Salvage Created 729 | 196 365 168 Parts 50 | 15 17 18 Haulers Intercepted 1 | . 1 . Recyclers Shooed . | . . . Parts Field Recycled . | . . . Retrieved Matter . | . . . Parts Self-Destructed . | . . . Prevented . | . . . Kills | -11 -10 -10 ------- Run | Jun Mat Min Combat Hostiles Destroyed 16 | . 8 8 Guns 16 | . 8 8 Classes Destroyed 6 | 3 2 1 Worker 1 | 1 . . Tunneler 5 | 5 . . Hauler 1 | . 1 . Recycler 1 | 1 . . Swarmer 6 | . . 6 Grunt 10 | . 8 2 Best Kill Streak 5 | 2 2 5 Combat Bots Only 5 | . 2 5 Max Kills in Single Turn 2 | 1 1 2 Gunslinging 1 | . . 1 Exploded . | . . . Melee . | . . . Uniques/NPCs Destroyed . | . . . Combat | -11 -10 -10 -------- Run | Jun Mat Min Damage Taken 954 | . 608 346 Core 257 | . 160 97 Absorbed by Shields . | . . . Core Remaining (%) 100 | 100 . . Volleys Fired 105 | 24 69 12 Largest 2 | 2 2 2 Hottest 100 | 60 100 60 Shots Fired 185 | 48 116 21 Gun 163 | 48 94 21 Cannon . | . . . Launcher . | . . . Special 22 | . 22 . Kinetic 99 | 24 66 9 Thermal 86 | 24 50 12 Explosive . | . . . Electromagnetic . | . . . Robot Hit Streak 14 | 7 14 7 Robot Miss Streak 4 | 4 3 2 Penetration Max . | . . . Secondary Targets 2 | . . 2 Max Gunslinging Chain 1 | . . 1 Shots Hit Robots 99 | 21 65 13 Core Hits 42 | 9 22 11 Critical Kills . | . . . Critical Parts Destroyed . | . . . Critical Strikes . | . . . Melee Attacks . | . . . Impact . | . . . Slashing . | . . . Piercing . | . . . Sneak Attacks . | . . . Combat Hostiles . | . . . Follow-up Attacks . | . . . Damage Inflicted 1138 | 215 746 177 Guns 1110 | 215 718 177 Cannons . | . . . Explosions . | . . . Melee . | . . . Ramming 4 | . 4 . Kinetic 609 | 68 463 78 Thermal 525 | 147 279 99 Explosive . | . . . Electromagnetic . | . . . Impact . | . . . Slashing . | . . . Piercing . | . . . Highest Corruption . | . . . Average Corruption . | . . . Corruption Purged . | . . . Corruption Blocked . | . . . Overload Shots . | . . . Overflow Damage . | . . . Projectiles . | . . . Explosions . | . . . Melee . | . . . Knockbacks . | . . . Impact . | . . . Kinetic . | . . . Secondary . | . . . Self-Inflicted Damage 2 | . 2 . Shots . | . . . Rammed 2 | 1 1 . Targets Rammed 2 | 1 1 . Kicked . | . . . Crushed . | . . . Highest Temperature 78 | 20 78 42 Average Temperature 22 | 14 24 22 Received Heat Transfer 408 | . 357 51 Siege Activations . | . . . Robots Corrupted . | . . . Combat Hostiles . | . . . Parts Fried . | . . . Impact Corruptions . | . . . Robots Melted . | . . . Combat Hostiles . | . . . Parts Melted . | . . . Heat Transferred 1175 | 325 625 225 Parts Sabotaged . | . . . Parts Stolen . | . . . Parts Stripped . | . . . Power Chain Reactions . | . . . Missiles Intercepted . | . . . Alert | -11 -10 -10 ------- Run | Jun Mat Min Peak Influence 215 | 20 171 215 Initial 25 | . . 25 Average 52 | 5 62 143 Maximum Alert Level 1 | . . 1 Low Security (%) 96 | 100 100 76 Level 1 3 | . . 23 Level 2 . | . . . Level 3 . | . . . Level 4 . | . . . Level 5 . | . . . High Security . | . . . Max Security . | . . . Squads Dispatched 3 | . 3 . Investigation 1 | . 1 . Extermination . | . . . Reinforcement 2 | . 2 . Assault . | . . . Garrison . | . . . Intercept . | . . . Searches Triggered . | . . . Construction Impeded . | . . . Haulers Reinforced . | . . . Active Scanning Responses . | . . . Cargo Convoy Interrupts . | . . . Stealth | -11 -10 -10 --------- Run | Jun Mat Min Distress Signals 2 | . 2 . Communications Jammed . | . . . Distress Signals . | . . . Times Spotted 52 | . 31 21 Peak Tracking Total 15 | . 4 15 Tactical Retreats 4 | . 4 . Traps | -11 -10 -10 ------- Run | Jun Mat Min Traps Triggered 1 | . 1 . Indirectly . | . . . Trap Hack Attempts . | . . . Triggered . | . . . Disarmed . | . . . Reprogrammed . | . . . Reused . | . . . Traps Extracted . | . . . Installed . | . . . Triggered . | . . . Machines | -11 -10 -10 ---------- Run | Jun Mat Min Machines Disabled 1 | . 1 . Max in Single Turn 1 | . 1 . Machines Repaired . | . . . Machines Sabotaged . | . . . Overloaded Fab Kills . | . . . Hacking | -11 -10 -10 --------- Run | Jun Mat Min Machines Accessed 7 | . 6 1 Terminals 5 | . 5 . Fabricators . | . . . Repair Stations 1 | . 1 . Recycling Units . | . . . Scanalyzers . | . . . Garrison Access . | . . . Total Hacks 14 | . 13 1 Successful 6 | . 5 1 Failed 8 | . 8 . Catastrophic 2 | . 2 . Database Lockouts . | . . . Manual 5 | . 5 . Terminals 12 | . 12 . Fabricators . | . . . Repair Stations 1 | . 1 . Recycling Units . | . . . Scanalyzers . | . . . Garrison Access . | . . . Terminal Hacks 4 | . 3 1 Open Door 1 | . . 1 Terminal Index 1 | . 1 . Alert Level 1 | . 1 . Unreport Threat 1 | . 1 . Fabricator Hacks . | . . . Repair Station Hacks . | . . . Recycling Unit Hacks . | . . . Scanalyzer . | . . . Garrison Access Hacks . | . . . Unauthorized Hacks 2 | . 2 . Terminals 2 | . 2 . Assimilate 1 | . 1 . Operators 1 | . 1 . Fabricators . | . . . Repair Stations . | . . . Recycling Units . | . . . Scanalyzers . | . . . Garrison Access . | . . . Data Cores Recovered . | . . . Used . | . . . Hacking Detections 4 | . 4 . Full Trace Events . | . . . Feedback Events . | . . . Feedback Blocked . | . . . Robot Schematics Acquired . | . . . Robots Built . | . . . Authchips . | . . . Time . | . . . Total Robot Build Rating . | . . . Part Schematics Acquired . | . . . Parts Built . | . . . Authchips . | . . . Time . | . . . Total Part Build Rating . | . . . Parts Repaired . | . . . Time . | . . . Parts Recycled . | . . . Recycled Matter . | . . . Retrieved Matter . | . . . Retrieved Components . | . . . Parts Scanalyzed . | . . . Part Schematics Acquired . | . . . Parts Damaged . | . . . Bothacking | -11 -10 -10 ------------ Run | Jun Mat Min Used RIF Installer . | . . . Robots Hacked . | . . . Non-combat . | . . . Combat . | . . . Robot Hacks Applied . | . . . Relay Couplers Released . | . . . Fabnet Peak Effective % . | . . . Robots Rewired . | . . . Allies Hacked . | . . . Hacks Repelled . | . . . Allies | -11 -10 -10 -------- Run | Jun Mat Min Total Allies 1 | . 1 . Largest Group 1 | . 1 . Highest-Rated Group 10 | . 10 . Highest-Rated Ally 10 | . 10 . Total Orders . | . . . Ally Attacks . | . . . Total Damage . | . . . Kills . | . . . Allies Corrupted . | . . . Allies Melted . | . . . Intel | -11 -10 -10 ------- Run | Jun Mat Min Robot Analysis Total . | . . . Derelict Logs Recovered 1 | . . 1 Drone Launches . | . . . Drone Recoveries . | . . . Exploration | -11 -10 -10 ------------- Run | Jun Mat Min Turns Passed 3392 | 1281 1630 481 Spaces Moved 2100 | 981 762 357 Core 14 | 14 . . Treads 771 | 349 422 . Legs . | . . . Wheels 1315 | 618 340 357 Hover . | . . . Flight . | . . . Fastest Speed 50 | 50 100 115 Average Speed 137 | 119 170 118 Slowest Speed 240 | 160 240 130 Overloaded Moves . | . . . Propulsion Burnouts . | . . . Robots Hopped . | . . . Cave-ins Triggered . | . . . Exploration Rate (%) 68 | 42 90 73 Regions Visited 2 Branch Regions 1 Pre-discovered Areas . | . . . Known Exits Taken . | . . . Unknown Exits Taken 2 | 1 1 . Scrap Searched 1 | . . 1 Spaces Dug 19 | . 19 . Terrain Destroyed 19 | . 19 . Melee . | . . . Projectile 19 | . 19 . AOE . | . . . Terrain Rammed . | . . . Walls Destroyed . | . . . Machines Disabled . | . . . Actions | -11 -10 -10 --------- Run | Jun Mat Min Total 2375 | 1043 936 396 Wait 87 | . 80 7 Move 2098 | 980 761 357 Hop . | . . . Pick Up 38 | 19 6 13 Fast Attach 6 | 5 1 . Attach 7 | 2 1 4 Detach . | . . . Swap 16 | 3 13 . Drop 16 | 9 4 3 Fire 105 | 24 69 12 Melee . | . . . Ram 2 | 1 1 . Kick . | . . . Crush . | . . . Escape Stasis . | . . . Rewire . | . . . Trap . | . . . Miscellaneous . | . . . Route ------- -11/Junkyard -10/Materials (discovered 5 exits: [*Mat x3] / *Min x2) -10/Mines (discovered 2 exits: [*Mat x2]) History --------- Turn | Location | Event 2 | -11/Junkyard | Met Revision 17 46 | -11/Junkyard | Discovered new exit (range 15) 1282 | -11/Junkyard | Entered Materials 1283 | -10/Materials | Build established: Mutant 1576 | -10/Materials | Discovered new exit (range 12) 1878 | -10/Materials | Discovered new exit (range 8) 2018 | -10/Materials | Discovered new exit (range 11) 2563 | -10/Materials | Discovered new exit (range 15) 2859 | -10/Materials | Discovered new exit (range 5) 2866 | -10/Materials | Core integrity fell below 50% 2912 | -10/Materials | Entered Mines 2912 | -10/Mines | Accompanied by 1 ally 3210 | -10/Mines | Discovered new exit (range 12) 3284 | -10/Mines | Found the Drone Emporium 3289 | -10/Mines | Found Prototype Device 3330 | -10/Mines | Discovered new exit (range 15) 3346 | -10/Mines | Learned Materials security intel 3374 | -10/Mines | Assembled infested the area 3378 | -10/Mines | Core integrity fell below 20% 3393 | -10/Mines | Destroyed by D-53 Grenadier with Mini Grenade Launcher Last Messages --------------- 03330_ EXIT=FOUND 03346_ Acquired derelict log, extracted data. Data stored: Materials security intel. 03362_ Searching scrap... 03362_ Found Mining Claw. 03362_ Found 31 Matter. 03374_ ALERT: Infestation in the mines, dispatching Demolisher response squad. 03387_ C-30 ARC bursts open, deploying its payload. 03387_ D-53 Grenadier unfolds itself. 03389_ Com. Wheel destroyed. 03391_ T-07 Excavator destroyed. 03392_ Dropped Hcp. Storage Unit. 03393_ D-53 Grenadier destroyed. 03393_ Dropped Ion Engine. 03393_ as-37731 destroyed. 03393_ as-20547 destroyed. 03393_ as-85418 destroyed. 03393_ as-99530 destroyed. 03393_ as-51095 destroyed. Map ----- +----------------------------------------------------+ | ????????????## ## ##### #####????## # | | ???????????## ## #???## | | ??????????## ######## #??## | | ????????### #??????# #??# | | ????????# ### ### ##??????# #?## | | ???????# ##?# ###?####???????# #?# | | ??????# #??# #????????####### ### | | ??????# ##??# #????????# # | | ??????######????# ########## ######### ## | | ??????#?????????# #???????## ### | | ??????? ######??####### ######?????######### | | ???????? ##??????## ##?????????# | | ?????????? ####??## ##????????# | | ???????????# ##?# ##???????# ####### | | ?????????### #?# #????#### ##????? | | ???#????## ### #????# #????? | | ???# ### #????# """ #????? | | ???# ##????# """ ###### | | ???# # # ##?????# """ | | ???# ## #####??????# ###### | | ???# < #### ###### #??????????# #????? | | ???# #???# #????#|#??????????# #????? | | ???## #????# #???##%##?????????# #????? | | ????###?????# ###?#|! ##????????########????? | | ????????????# ## ##!*[!#????????????????????? | | ????????????# % [!@[=#????????????????????? | | ????????????#### d[! [ #????????????????????? | | ??????????????# ! !* #???????????????????? | | ??????????????## a=*% ##???????????????????? | | ???????????????## % #????????????????????? | | ?????????????#### #????????????????????? | | ?????????????# /a ##?????????????????????? | | ?????????????# #######??????????????????????? | | ??????????#### #????????????????????????????? | | ?????????## ##???????????????????????????? | | ?????????# #???????????????????????????? | | ?????????# #????????????????????????? | | ?????????# ????????????????????? | | ????????# ?????????????????? | | ???????# ##### ?????????????????? | | ???????# ## ##???????????????????????? | | ??????? #?## ##????????????????????????? | | ?????? ????# ##?????????????????????????? | | ????? #????? ##??????????????????????????? | | ???? #?????? #???????????????????????????? | | ???# ??????? ????????????????????????# ?? | | ???# ????????##????????????????????????# | | ???# ??????????????????????????????????# | | ????? ????????????????????????????????????# | | ???????????????????????????????????????????## | +----------------------------------------------------+ Best States ------------- Heat Dissipation 25 Energy Generation 10 Energy Capacity 250 Matter Stores 300 Matter Capacity 300 Sight Range 16 Terrain Scan Density 10 Evasion (%) 50 Targeting Accuracy 5 Recoil Reduction 2 Item Schematics ----------------- None Robot Schematics ------------------ None Fabricated ------------ Nothing Alien Tech Used ----------------- None Achievements -------------- None Challenges ------------ None Game ------ Seed GravityLinkedRipper Manual? 0 Play Time 00:36:33 Cumulative 96.2 hours Start 2023.04.30 @ 10:11:45 End 2023.05.01 @ 08:49:18 Sessions 3 Manual Loads 0 Difficulty Rogue Special Mode None Game No. 27 Rogue 27 Adventurer 0 Explorer 0 Win Type - Total 4 Types 4/0/0/0/0/0/0/0/0 Lore% 29 Gallery% 48 Achievement% 40 Wizard Run 0 Options --------- ASCII 0 Keyboard 0 Movement Mouse Keybinds 0 Fullscreen 2 Font 16/SmallcapsGlow Map View 75x55 Tactical HUD 1 Map Filters NONE Filters NONE Steam 1 RUN: 33369d80-94c3-4431-860b-9246ddf61c9f